{"text_format":"1","workbook":"xlsx","n_sheets":7,"sheets":["Manage","MemberSecurity","FormSecurity","BusinessRuleSecurity","TaskListSecurity","lists","AddUsersToGroup"],"not_rendered":{"charts":0,"images":0,"macros":1,"external_links":0,"defined_names":13,"comments":0,"pivot_tables":0},"unopened":[],"bounds":{"document_bytes":16777216,"sheet_cells":100000,"rows_first":2000,"rows_last":500,"rows_between":2000,"halvings":0,"cell_chars":16384,"cell_head_chars":4096},"cells_cut":0,"cells_raw":0,"read":"whole","date_system":"1900"}

{"sheet":"Manage","index":0,"n_rows":9,"n_cols":6,"rows_kept":9,"cut":false,"hidden":false,"merged":[]}
[]
[]
[]
[null,"Client","TheUnlockedCube"]
[null,"Application Name","Unlocked"]
[]
[]
[]
[null,"Security applied on following dimensions:",null,null,null,"User List"]

{"sheet":"MemberSecurity","index":1,"n_rows":700,"n_cols":8,"rows_kept":700,"cut":false,"hidden":false,"merged":[]}
["Dimension","MemberName","Group Name","Access Level","Relationship","Used in SecFile","CREATE OR REPLACE GROUP",";"]
[null,null,null,null,null,{"$f":"IF(C2<>\"\",C2&\",\"&B2&\",\"&D2&\",\"&E2,\"\")","v":""},{"$f":"IF(C2<>\"\",$G$1&\" '\"&C2&\"'\"&$H$1,\"\")","v":""}]
[null,null,null,null,null,"",{"$f":"IF(C3<>\"\",$G$1&\" '\"&C3&\"'\"&$H$1,\"\")","v":""}]
[null,null,null,null,null,"",""]
[null,null,null,null,null,"",""]
[null,null,null,null,null,"",""]
[null,null,null,null,null,"",""]
[null,null,null,null,null,"",""]
[null,null,null,null,null,"",""]
[null,null,null,null,null,"",""]
[null,null,null,null,null,"",""]
[null,null,null,null,null,"",""]
[null,null,null,null,null,"",""]
[null,null,null,null,null,"",""]
[null,null,null,null,null,"",""]
[null,null,null,null,null,"",""]
[null,null,null,null,null,"",""]
[null,null,null,null,null,"",""]
[null,null,null,null,null,"",""]
[null,null,null,null,null,"",""]
[null,null,null,null,null,"",""]
[null,null,null,null,null,"",""]
[null,null,null,null,null,"",""]
[null,null,null,null,null,"",""]
[null,null,null,null,null,"",""]
[null,null,null,null,null,"",""]
[null,null,null,null,null,"",""]
[null,null,null,null,null,"",""]
[null,null,null,null,null,"",""]
[null,null,null,null,null,"",""]
[null,null,null,null,null,"",""]
[null,null,null,null,null,"",""]
[null,null,null,null,null,"",""]
[null,null,null,null,null,"",""]
[null,null,null,null,null,"",""]
[null,null,null,null,null,"",""]
[null,null,null,null,null,"",""]
[null,null,null,null,null,"",""]
[null,null,null,null,null,"",""]
[null,null,null,null,null,"",""]
[null,null,null,null,null,"",""]
[null,null,null,null,null,"",""]
[null,null,null,null,null,"",""]
[null,null,null,null,null,"",""]
[null,null,null,null,null,"",""]
[null,null,null,null,null,"",""]
[null,null,null,null,null,"",""]
[null,null,null,null,null,"",""]
[null,null,null,null,null,"",""]
[null,null,null,null,null,"",""]
[null,null,null,null,null,"",""]
[null,null,null,null,null,"",""]
[null,null,null,null,null,"",""]
[null,null,null,null,null,"",""]
[null,null,null,null,null,"",""]
[null,null,null,null,null,"",""]
[null,null,null,null,null,"",""]
[null,null,null,null,null,"",""]
[null,null,null,null,null,"",""]
[null,null,null,null,null,"",""]
[null,null,null,null,null,"",""]
[null,null,null,null,null,"",""]
[null,null,null,null,null,"",""]
[null,null,null,null,null,"",""]
[null,null,null,null,null,"",""]
[null,null,null,null,null,{"$f":"IF(C66<>\"\",C66&\",\"&B66&\",\"&D66&\",\"&E66,\"\")","v":""},""]
[null,null,null,null,null,"",{"$f":"IF(C67<>\"\",$G$1&\" '\"&C67&\"'\"&$H$1,\"\")","v":""}]
[null,null,null,null,null,"",""]
[null,null,null,null,null,"",""]
[null,null,null,null,null,"",""]
[null,null,null,null,null,"",""]
[null,null,null,null,null,"",""]
[null,null,null,null,null,"",""]
[null,null,null,null,null,"",""]
[null,null,null,null,null,"",""]
[null,null,null,null,null,"",""]
[null,null,null,null,null,"",""]
[null,null,null,null,null,"",""]
[null,null,null,null,null,"",""]
[null,null,null,null,null,"",""]
[null,null,null,null,null,"",""]
[null,null,null,null,null,"",""]
[null,null,null,null,null,"",""]
[null,null,null,null,null,"",""]
[null,null,null,null,null,"",""]
[null,null,null,null,null,"",""]
[null,null,null,null,null,"",""]
[null,null,null,null,null,"",""]
[null,null,null,null,null,"",""]
[null,null,null,null,null,"",""]
[null,null,null,null,null,"",""]
[null,null,null,null,null,"",""]
[null,null,null,null,null,"",""]
[null,null,null,null,null,"",""]
[null,null,null,null,null,"",""]
[null,null,null,null,null,"",""]
[null,null,null,null,null,"",""]
[null,null,null,null,null,"",""]
[null,null,null,null,null,"",""]
[null,null,null,null,null,"",""]
[null,null,null,null,null,"",""]
[null,null,null,null,null,"",""]
[null,null,null,null,null,"",""]
[null,null,null,null,null,"",""]
[null,null,null,null,null,"",""]
[null,null,null,null,null,"",""]
[null,null,null,null,null,"",""]
[null,null,null,null,null,"",""]
[null,null,null,null,null,"",""]
[null,null,null,null,null,"",""]
[null,null,null,null,null,"",""]
[null,null,null,null,null,"",""]
[null,null,null,null,null,"",""]
[null,null,null,null,null,"",""]
[null,null,null,null,null,"",""]
[null,null,null,null,null,"",""]
[null,null,null,null,null,"",""]
[null,null,null,null,null,"",""]
[null,null,null,null,null,"",""]
[null,null,null,null,null,"",""]
[null,null,null,null,null,"",""]
[null,null,null,null,null,"",""]
[null,null,null,null,null,"",""]
[null,null,null,null,null,"",""]
[null,null,null,null,null,"",""]
[null,null,null,null,null,"",""]
[null,null,null,null,null,"",""]
[null,null,null,null,null,"",""]
[null,null,null,null,null,"",""]
[null,null,null,null,null,{"$f":"IF(C130<>\"\",C130&\",\"&B130&\",\"&D130&\",\"&E130,\"\")","v":""},""]
[null,null,null,null,null,"",{"$f":"IF(C131<>\"\",$G$1&\" '\"&C131&\"'\"&$H$1,\"\")","v":""}]
[null,null,null,null,null,"",""]
[null,null,null,null,null,"",""]
[null,null,null,null,null,"",""]
[null,null,null,null,null,"",""]
[null,null,null,null,null,"",""]
[null,null,null,null,null,"",""]
[null,null,null,null,null,"",""]
[null,null,null,null,null,"",""]
[null,null,null,null,null,"",""]
[null,null,null,null,null,"",""]
[null,null,null,null,null,"",""]
[null,null,null,null,null,"",""]
[null,null,null,null,null,"",""]
[null,null,null,null,null,"",""]
[null,null,null,null,null,"",""]
[null,null,null,null,null,"",""]
[null,null,null,null,null,"",""]
[null,null,null,null,null,"",""]
[null,null,null,null,null,"",""]
[null,null,null,null,null,"",""]
[null,null,null,null,null,"",""]
[null,null,null,null,null,"",""]
[null,null,null,null,null,"",""]
[null,null,null,null,null,"",""]
[null,null,null,null,null,"",""]
[null,null,null,null,null,"",""]
[null,null,null,null,null,"",""]
[null,null,null,null,null,"",""]
[null,null,null,null,null,"",""]
[null,null,null,null,null,"",""]
[null,null,null,null,null,"",""]
[null,null,null,null,null,"",""]
[null,null,null,null,null,"",""]
[null,null,null,null,null,"",""]
[null,null,null,null,null,"",""]
[null,null,null,null,null,"",""]
[null,null,null,null,null,"",""]
[null,null,null,null,null,"",""]
[null,null,null,null,null,"",""]
[null,null,null,null,null,"",""]
[null,null,null,null,null,"",""]
[null,null,null,null,null,"",""]
[null,null,null,null,null,"",""]
[null,null,null,null,null,"",""]
[null,null,null,null,null,"",""]
[null,null,null,null,null,"",""]
[null,null,null,null,null,"",""]
[null,null,null,null,null,"",""]
[null,null,null,null,null,"",""]
[null,null,null,null,null,"",""]
[null,null,null,null,null,"",""]
[null,null,null,null,null,"",""]
[null,null,null,null,null,"",""]
[null,null,null,null,null,"",""]
[null,null,null,null,null,"",""]
[null,null,null,null,null,"",""]
[null,null,null,null,null,"",""]
[null,null,null,null,null,"",""]
[null,null,null,null,null,"",""]
[null,null,null,null,null,"",""]
[null,null,null,null,null,"",""]
[null,null,null,null,null,"",""]
[null,null,null,null,null,{"$f":"IF(C194<>\"\",C194&\",\"&B194&\",\"&D194&\",\"&E194,\"\")","v":""},""]
[null,null,null,null,null,"",{"$f":"IF(C195<>\"\",$G$1&\" '\"&C195&\"'\"&$H$1,\"\")","v":""}]
[null,null,null,null,null,"",""]
[null,null,null,null,null,"",""]
[null,null,null,null,null,"",""]
[null,null,null,null,null,"",""]
[null,null,null,null,null,"",""]
[null,null,null,null,null,"",""]
[null,null,null,null,null,"",""]
[null,null,null,null,null,"",""]
[null,null,null,null,null,"",""]
[null,null,null,null,null,"",""]
[null,null,null,null,null,"",""]
[null,null,null,null,null,"",""]
[null,null,null,null,null,"",""]
[null,null,null,null,null,"",""]
[null,null,null,null,null,"",""]
[null,null,null,null,null,"",""]
[null,null,null,null,null,"",""]
[null,null,null,null,null,"",""]
[null,null,null,null,null,"",""]
[null,null,null,null,null,"",""]
[null,null,null,null,null,"",""]
[null,null,null,null,null,"",""]
[null,null,null,null,null,"",""]
[null,null,null,null,null,"",""]
[null,null,null,null,null,"",""]
[null,null,null,null,null,"",""]
[null,null,null,null,null,"",""]
[null,null,null,null,null,"",""]
[null,null,null,null,null,"",""]
[null,null,null,null,null,"",""]
[null,null,null,null,null,"",""]
[null,null,null,null,null,"",""]
[null,null,null,null,null,"",""]
[null,null,null,null,null,"",""]
[null,null,null,null,null,"",""]
[null,null,null,null,null,"",""]
[null,null,null,null,null,"",""]
[null,null,null,null,null,"",""]
[null,null,null,null,null,"",""]
[null,null,null,null,null,"",""]
[null,null,null,null,null,"",""]
[null,null,null,null,null,"",""]
[null,null,null,null,null,"",""]
[null,null,null,null,null,"",""]
[null,null,null,null,null,"",""]
[null,null,null,null,null,"",""]
[null,null,null,null,null,"",""]
[null,null,null,null,null,"",""]
[null,null,null,null,null,"",""]
[null,null,null,null,null,"",""]
[null,null,null,null,null,"",""]
[null,null,null,null,null,"",""]
[null,null,null,null,null,"",""]
[null,null,null,null,null,"",""]
[null,null,null,null,null,"",""]
[null,null,null,null,null,"",""]
[null,null,null,null,null,"",""]
[null,null,null,null,null,"",""]
[null,null,null,null,null,"",""]
[null,null,null,null,null,"",""]
[null,null,null,null,null,"",""]
[null,null,null,null,null,"",""]
[null,null,null,null,null,{"$f":"IF(C258<>\"\",C258&\",\"&B258&\",\"&D258&\",\"&E258,\"\")","v":""},""]
[null,null,null,null,null,"",{"$f":"IF(C259<>\"\",$G$1&\" '\"&C259&\"'\"&$H$1,\"\")","v":""}]
[null,null,null,null,null,"",""]
[null,null,null,null,null,"",""]
[null,null,null,null,null,"",""]
[null,null,null,null,null,"",""]
[null,null,null,null,null,"",""]
[null,null,null,null,null,"",""]
[null,null,null,null,null,"",""]
[null,null,null,null,null,"",""]
[null,null,null,null,null,"",""]
[null,null,null,null,null,"",""]
[null,null,null,null,null,"",""]
[null,null,null,null,null,"",""]
[null,null,null,null,null,"",""]
[null,null,null,null,null,"",""]
[null,null,null,null,null,"",""]
[null,null,null,null,null,"",""]
[null,null,null,null,null,"",""]
[null,null,null,null,null,"",""]
[null,null,null,null,null,"",""]
[null,null,null,null,null,"",""]
[null,null,null,null,null,"",""]
[null,null,null,null,null,"",""]
[null,null,null,null,null,"",""]
[null,null,null,null,null,"",""]
[null,null,null,null,null,"",""]
[null,null,null,null,null,"",""]
[null,null,null,null,null,"",""]
[null,null,null,null,null,"",""]
[null,null,null,null,null,"",""]
[null,null,null,null,null,"",""]
[null,null,null,null,null,"",""]
[null,null,null,null,null,"",""]
[null,null,null,null,null,"",""]
[null,null,null,null,null,"",""]
[null,null,null,null,null,"",""]
[null,null,null,null,null,"",""]
[null,null,null,null,null,"",""]
[null,null,null,null,null,"",""]
[null,null,null,null,null,"",""]
[null,null,null,null,null,"",""]
[null,null,null,null,null,"",""]
[null,null,null,null,null,"",""]
[null,null,null,null,null,"",""]
[null,null,null,null,null,"",""]
[null,null,null,null,null,"",""]
[null,null,null,null,null,"",""]
[null,null,null,null,null,"",""]
[null,null,null,null,null,"",""]
[null,null,null,null,null,"",""]
[null,null,null,null,null,"",""]
[null,null,null,null,null,"",""]
[null,null,null,null,null,"",""]
[null,null,null,null,null,"",""]
[null,null,null,null,null,"",""]
[null,null,null,null,null,"",""]
[null,null,null,null,null,"",""]
[null,null,null,null,null,"",""]
[null,null,null,null,null,"",""]
[null,null,null,null,null,"",""]
[null,null,null,null,null,"",""]
[null,null,null,null,null,"",""]
[null,null,null,null,null,"",""]
[null,null,null,null,null,{"$f":"IF(C322<>\"\",C322&\",\"&B322&\",\"&D322&\",\"&E322,\"\")","v":""},""]
[null,null,null,null,null,"",{"$f":"IF(C323<>\"\",$G$1&\" '\"&C323&\"'\"&$H$1,\"\")","v":""}]
[null,null,null,null,null,"",""]
[null,null,null,null,null,"",""]
[null,null,null,null,null,"",""]
[null,null,null,null,null,"",""]
[null,null,null,null,null,"",""]
[null,null,null,null,null,"",""]
[null,null,null,null,null,"",""]
[null,null,null,null,null,"",""]
[null,null,null,null,null,"",""]
[null,null,null,null,null,"",""]
[null,null,null,null,null,"",""]
[null,null,null,null,null,"",""]
[null,null,null,null,null,"",""]
[null,null,null,null,null,"",""]
[null,null,null,null,null,"",""]
[null,null,null,null,null,"",""]
[null,null,null,null,null,"",""]
[null,null,null,null,null,"",""]
[null,null,null,null,null,"",""]
[null,null,null,null,null,"",""]
[null,null,null,null,null,"",""]
[null,null,null,null,null,"",""]
[null,null,null,null,null,"",""]
[null,null,null,null,null,"",""]
[null,null,null,null,null,"",""]
[null,null,null,null,null,"",""]
[null,null,null,null,null,"",""]
[null,null,null,null,null,"",""]
[null,null,null,null,null,"",""]
[null,null,null,null,null,"",""]
[null,null,null,null,null,"",""]
[null,null,null,null,null,"",""]
[null,null,null,null,null,"",""]
[null,null,null,null,null,"",""]
[null,null,null,null,null,"",""]
[null,null,null,null,null,"",""]
[null,null,null,null,null,"",""]
[null,null,null,null,null,"",""]
[null,null,null,null,null,"",""]
[null,null,null,null,null,"",""]
[null,null,null,null,null,"",""]
[null,null,null,null,null,"",""]
[null,null,null,null,null,"",""]
[null,null,null,null,null,"",""]
[null,null,null,null,null,"",""]
[null,null,null,null,null,"",""]
[null,null,null,null,null,"",""]
[null,null,null,null,null,"",""]
[null,null,null,null,null,"",""]
[null,null,null,null,null,"",""]
[null,null,null,null,null,"",""]
[null,null,null,null,null,"",""]
[null,null,null,null,null,"",""]
[null,null,null,null,null,"",""]
[null,null,null,null,null,"",""]
[null,null,null,null,null,"",""]
[null,null,null,null,null,"",""]
[null,null,null,null,null,"",""]
[null,null,null,null,null,"",""]
[null,null,null,null,null,"",""]
[null,null,null,null,null,"",""]
[null,null,null,null,null,"",""]
[null,null,null,null,null,{"$f":"IF(C386<>\"\",C386&\",\"&B386&\",\"&D386&\",\"&E386,\"\")","v":""},""]
[null,null,null,null,null,"",{"$f":"IF(C387<>\"\",$G$1&\" '\"&C387&\"'\"&$H$1,\"\")","v":""}]
[null,null,null,null,null,"",""]
[null,null,null,null,null,"",""]
[null,null,null,null,null,"",""]
[null,null,null,null,null,"",""]
[null,null,null,null,null,"",""]
[null,null,null,null,null,"",""]
[null,null,null,null,null,"",""]
[null,null,null,null,null,"",""]
[null,null,null,null,null,"",""]
[null,null,null,null,null,"",""]
[null,null,null,null,null,"",""]
[null,null,null,null,null,"",""]
[null,null,null,null,null,"",""]
[null,null,null,null,null,"",""]
[null,null,null,null,null,"",""]
[null,null,null,null,null,"",""]
[null,null,null,null,null,"",""]
[null,null,null,null,null,"",""]
[null,null,null,null,null,"",""]
[null,null,null,null,null,"",""]
[null,null,null,null,null,"",""]
[null,null,null,null,null,"",""]
[null,null,null,null,null,"",""]
[null,null,null,null,null,"",""]
[null,null,null,null,null,"",""]
[null,null,null,null,null,"",""]
[null,null,null,null,null,"",""]
[null,null,null,null,null,"",""]
[null,null,null,null,null,"",""]
[null,null,null,null,null,"",""]
[null,null,null,null,null,"",""]
[null,null,null,null,null,"",""]
[null,null,null,null,null,"",""]
[null,null,null,null,null,"",""]
[null,null,null,null,null,"",""]
[null,null,null,null,null,"",""]
[null,null,null,null,null,"",""]
[null,null,null,null,null,"",""]
[null,null,null,null,null,"",""]
[null,null,null,null,null,"",""]
[null,null,null,null,null,"",""]
[null,null,null,null,null,"",""]
[null,null,null,null,null,"",""]
[null,null,null,null,null,"",""]
[null,null,null,null,null,"",""]
[null,null,null,null,null,"",""]
[null,null,null,null,null,"",""]
[null,null,null,null,null,"",""]
[null,null,null,null,null,"",""]
[null,null,null,null,null,"",""]
[null,null,null,null,null,"",""]
[null,null,null,null,null,"",""]
[null,null,null,null,null,"",""]
[null,null,null,null,null,"",""]
[null,null,null,null,null,"",""]
[null,null,null,null,null,"",""]
[null,null,null,null,null,"",""]
[null,null,null,null,null,"",""]
[null,null,null,null,null,"",""]
[null,null,null,null,null,"",""]
[null,null,null,null,null,"",""]
[null,null,null,null,null,"",""]
[null,null,null,null,null,{"$f":"IF(C450<>\"\",C450&\",\"&B450&\",\"&D450&\",\"&E450,\"\")","v":""},""]
[null,null,null,null,null,"",{"$f":"IF(C451<>\"\",$G$1&\" '\"&C451&\"'\"&$H$1,\"\")","v":""}]
[null,null,null,null,null,"",""]
[null,null,null,null,null,"",""]
[null,null,null,null,null,"",""]
[null,null,null,null,null,"",""]
[null,null,null,null,null,"",""]
[null,null,null,null,null,"",""]
[null,null,null,null,null,"",""]
[null,null,null,null,null,"",""]
[null,null,null,null,null,"",""]
[null,null,null,null,null,"",""]
[null,null,null,null,null,"",""]
[null,null,null,null,null,"",""]
[null,null,null,null,null,"",""]
[null,null,null,null,null,"",""]
[null,null,null,null,null,"",""]
[null,null,null,null,null,"",""]
[null,null,null,null,null,"",""]
[null,null,null,null,null,"",""]
[null,null,null,null,null,"",""]
[null,null,null,null,null,"",""]
[null,null,null,null,null,"",""]
[null,null,null,null,null,"",""]
[null,null,null,null,null,"",""]
[null,null,null,null,null,"",""]
[null,null,null,null,null,"",""]
[null,null,null,null,null,"",""]
[null,null,null,null,null,"",""]
[null,null,null,null,null,"",""]
[null,null,null,null,null,"",""]
[null,null,null,null,null,"",""]
[null,null,null,null,null,"",""]
[null,null,null,null,null,"",""]
[null,null,null,null,null,"",""]
[null,null,null,null,null,"",""]
[null,null,null,null,null,"",""]
[null,null,null,null,null,"",""]
[null,null,null,null,null,"",""]
[null,null,null,null,null,"",""]
[null,null,null,null,null,"",""]
[null,null,null,null,null,"",""]
[null,null,null,null,null,"",""]
[null,null,null,null,null,"",""]
[null,null,null,null,null,"",""]
[null,null,null,null,null,"",""]
[null,null,null,null,null,"",""]
[null,null,null,null,null,"",""]
[null,null,null,null,null,"",""]
[null,null,null,null,null,"",""]
[null,null,null,null,null,"",""]
[null,null,null,null,null,"",""]
[null,null,null,null,null,"",""]
[null,null,null,null,null,"",""]
[null,null,null,null,null,"",""]
[null,null,null,null,null,"",""]
[null,null,null,null,null,"",""]
[null,null,null,null,null,"",""]
[null,null,null,null,null,"",""]
[null,null,null,null,null,"",""]
[null,null,null,null,null,"",""]
[null,null,null,null,null,"",""]
[null,null,null,null,null,"",""]
[null,null,null,null,null,"",""]
[null,null,null,null,null,{"$f":"IF(C514<>\"\",C514&\",\"&B514&\",\"&D514&\",\"&E514,\"\")","v":""},""]
[null,null,null,null,null,"",{"$f":"IF(C515<>\"\",$G$1&\" '\"&C515&\"'\"&$H$1,\"\")","v":""}]
[null,null,null,null,null,"",""]
[null,null,null,null,null,"",""]
[null,null,null,null,null,"",""]
[null,null,null,null,null,"",""]
[null,null,null,null,null,"",""]
[null,null,null,null,null,"",""]
[null,null,null,null,null,"",""]
[null,null,null,null,null,"",""]
[null,null,null,null,null,"",""]
[null,null,null,null,null,"",""]
[null,null,null,null,null,"",""]
[null,null,null,null,null,"",""]
[null,null,null,null,null,"",""]
[null,null,null,null,null,"",""]
[null,null,null,null,null,"",""]
[null,null,null,null,null,"",""]
[null,null,null,null,null,"",""]
[null,null,null,null,null,"",""]
[null,null,null,null,null,"",""]
[null,null,null,null,null,"",""]
[null,null,null,null,null,"",""]
[null,null,null,null,null,"",""]
[null,null,null,null,null,"",""]
[null,null,null,null,null,"",""]
[null,null,null,null,null,"",""]
[null,null,null,null,null,"",""]
[null,null,null,null,null,"",""]
[null,null,null,null,null,"",""]
[null,null,null,null,null,"",""]
[null,null,null,null,null,"",""]
[null,null,null,null,null,"",""]
[null,null,null,null,null,"",""]
[null,null,null,null,null,"",""]
[null,null,null,null,null,"",""]
[null,null,null,null,null,"",""]
[null,null,null,null,null,"",""]
[null,null,null,null,null,"",""]
[null,null,null,null,null,"",""]
[null,null,null,null,null,"",""]
[null,null,null,null,null,"",""]
[null,null,null,null,null,"",""]
[null,null,null,null,null,"",""]
[null,null,null,null,null,"",""]
[null,null,null,null,null,"",""]
[null,null,null,null,null,"",""]
[null,null,null,null,null,"",""]
[null,null,null,null,null,"",""]
[null,null,null,null,null,"",""]
[null,null,null,null,null,"",""]
[null,null,null,null,null,"",""]
[null,null,null,null,null,"",""]
[null,null,null,null,null,"",""]
[null,null,null,null,null,"",""]
[null,null,null,null,null,"",""]
[null,null,null,null,null,"",""]
[null,null,null,null,null,"",""]
[null,null,null,null,null,"",""]
[null,null,null,null,null,"",""]
[null,null,null,null,null,"",""]
[null,null,null,null,null,"",""]
[null,null,null,null,null,"",""]
[null,null,null,null,null,"",""]
[null,null,null,null,null,{"$f":"IF(C578<>\"\",C578&\",\"&B578&\",\"&D578&\",\"&E578,\"\")","v":""},""]
[null,null,null,null,null,"",{"$f":"IF(C579<>\"\",$G$1&\" '\"&C579&\"'\"&$H$1,\"\")","v":""}]
[null,null,null,null,null,"",""]
[null,null,null,null,null,"",""]
[null,null,null,null,null,"",""]
[null,null,null,null,null,"",""]
[null,null,null,null,null,"",""]
[null,null,null,null,null,"",""]
[null,null,null,null,null,"",""]
[null,null,null,null,null,"",""]
[null,null,null,null,null,"",""]
[null,null,null,null,null,"",""]
[null,null,null,null,null,"",""]
[null,null,null,null,null,"",""]
[null,null,null,null,null,"",""]
[null,null,null,null,null,"",""]
[null,null,null,null,null,"",""]
[null,null,null,null,null,"",""]
[null,null,null,null,null,"",""]
[null,null,null,null,null,"",""]
[null,null,null,null,null,"",""]
[null,null,null,null,null,"",""]
[null,null,null,null,null,"",""]
[null,null,null,null,null,"",""]
[null,null,null,null,null,"",""]
[null,null,null,null,null,"",""]
[null,null,null,null,null,"",""]
[null,null,null,null,null,"",""]
[null,null,null,null,null,"",""]
[null,null,null,null,null,"",""]
[null,null,null,null,null,"",""]
[null,null,null,null,null,"",""]
[null,null,null,null,null,"",""]
[null,null,null,null,null,"",""]
[null,null,null,null,null,"",""]
[null,null,null,null,null,"",""]
[null,null,null,null,null,"",""]
[null,null,null,null,null,"",""]
[null,null,null,null,null,"",""]
[null,null,null,null,null,"",""]
[null,null,null,null,null,"",""]
[null,null,null,null,null,"",""]
[null,null,null,null,null,"",""]
[null,null,null,null,null,"",""]
[null,null,null,null,null,"",""]
[null,null,null,null,null,"",""]
[null,null,null,null,null,"",""]
[null,null,null,null,null,"",""]
[null,null,null,null,null,"",""]
[null,null,null,null,null,"",""]
[null,null,null,null,null,"",""]
[null,null,null,null,null,"",""]
[null,null,null,null,null,"",""]
[null,null,null,null,null,"",""]
[null,null,null,null,null,"",""]
[null,null,null,null,null,"",""]
[null,null,null,null,null,"",""]
[null,null,null,null,null,"",""]
[null,null,null,null,null,"",""]
[null,null,null,null,null,"",""]
[null,null,null,null,null,"",""]
[null,null,null,null,null,"",""]
[null,null,null,null,null,"",""]
[null,null,null,null,null,"",""]
[null,null,null,null,null,{"$f":"IF(C642<>\"\",C642&\",\"&B642&\",\"&D642&\",\"&E642,\"\")","v":""},""]
[null,null,null,null,null,"",{"$f":"IF(C643<>\"\",$G$1&\" '\"&C643&\"'\"&$H$1,\"\")","v":""}]
[null,null,null,null,null,"",""]
[null,null,null,null,null,"",""]
[null,null,null,null,null,"",""]
[null,null,null,null,null,"",""]
[null,null,null,null,null,"",""]
[null,null,null,null,null,"",""]
[null,null,null,null,null,"",""]
[null,null,null,null,null,"",""]
[null,null,null,null,null,"",""]
[null,null,null,null,null,"",""]
[null,null,null,null,null,"",""]
[null,null,null,null,null,"",""]
[null,null,null,null,null,"",""]
[null,null,null,null,null,"",""]
[null,null,null,null,null,"",""]
[null,null,null,null,null,"",""]
[null,null,null,null,null,"",""]
[null,null,null,null,null,"",""]
[null,null,null,null,null,"",""]
[null,null,null,null,null,"",""]
[null,null,null,null,null,"",""]
[null,null,null,null,null,"",""]
[null,null,null,null,null,"",""]
[null,null,null,null,null,"",""]
[null,null,null,null,null,"",""]
[null,null,null,null,null,"",""]
[null,null,null,null,null,"",""]
[null,null,null,null,null,"",""]
[null,null,null,null,null,"",""]
[null,null,null,null,null,"",""]
[null,null,null,null,null,"",""]
[null,null,null,null,null,"",""]
[null,null,null,null,null,"",""]
[null,null,null,null,null,"",""]
[null,null,null,null,null,"",""]
[null,null,null,null,null,"",""]
[null,null,null,null,null,"",""]
[null,null,null,null,null,"",""]
[null,null,null,null,null,"",""]
[null,null,null,null,null,"",""]
[null,null,null,null,null,"",""]
[null,null,null,null,null,"",""]
[null,null,null,null,null,"",""]
[null,null,null,null,null,"",""]
[null,null,null,null,null,"",""]
[null,null,null,null,null,"",""]
[null,null,null,null,null,"",""]
[null,null,null,null,null,"",""]
[null,null,null,null,null,"",""]
[null,null,null,null,null,"",""]
[null,null,null,null,null,"",""]
[null,null,null,null,null,"",""]
[null,null,null,null,null,"",""]
[null,null,null,null,null,"",""]
[null,null,null,null,null,"",""]
[null,null,null,null,null,"",""]
[null,null,null,null,null,"",""]

{"sheet":"FormSecurity","index":2,"n_rows":250,"n_cols":8,"rows_kept":250,"cut":false,"hidden":false,"merged":[]}
["Group Name","Form or Form Folder name","Access Level","Type","Relationship","Used in SecFile","CREATE OR REPLACE GROUP",";"]
[null,null,null,null,{"$f":"IF(D2=\"SL_FORM\",\"MEMBER\",IF(D2=\"SL_COMPOSITE\",\"MEMBER\",IF(D2=\"SL_FORMFOLDER\",\"@IDESCENDANTS\",\"\")))","v":""},{"$f":"IF(A2<>\"\",A2&\",\"&B2&\",\"&C2&\",\"&E2&\",\"&D2,\"\")","v":""},{"$f":"IF(A2<>\"\",$G$1&\" '\"&A2&\"'\"&$H$1,\"\")","v":""}]
[null,null,null,null,{"$f":"IF(D3=\"SL_FORM\",\"MEMBER\",IF(D3=\"SL_COMPOSITE\",\"MEMBER\",IF(D3=\"SL_FORMFOLDER\",\"@IDESCENDANTS\",\"\")))","v":""},"",{"$f":"IF(A3<>\"\",$G$1&\" '\"&A3&\"'\"&$H$1,\"\")","v":""}]
[null,null,null,null,"","",""]
[null,null,null,null,"","",""]
[null,null,null,null,"","",""]
[null,null,null,null,"","",""]
[null,null,null,null,"","",""]
[null,null,null,null,"","",""]
[null,null,null,null,"","",""]
[null,null,null,null,"","",""]
[null,null,null,null,"","",""]
[null,null,null,null,"","",""]
[null,null,null,null,"","",""]
[null,null,null,null,"","",""]
[null,null,null,null,"","",""]
[null,null,null,null,"","",""]
[null,null,null,null,"","",""]
[null,null,null,null,"",{"$f":"IF(A19<>\"\",A19&\",\"&B19&\",\"&C19&\",\"&E19&\",\"&D19,\"\")","v":""},""]
[null,null,null,null,"","",""]
[null,null,null,null,"","",""]
[null,null,null,null,"","",""]
[null,null,null,null,"","",""]
[null,null,null,null,"","",""]
[null,null,null,null,"","",""]
[null,null,null,null,"","",""]
[null,null,null,null,"","",""]
[null,null,null,null,"",{"$f":"IF(A28<>\"\",A28&\",\"&B28&\",\"&C28&\",\"&E28&\",\"&D28,\"\")","v":""},""]
[null,null,null,null,"","",""]
[null,null,null,null,"","",""]
[null,null,null,null,"","",""]
[null,null,null,null,"","",""]
[null,null,null,null,"","",""]
[null,null,null,null,"",{"$f":"IF(A34<>\"\",A34&\",\"&B34&\",\"&C34&\",\"&E34&\",\"&D34,\"\")","v":""},""]
[null,null,null,null,{"$f":"IF(D35=\"SL_FORM\",\"MEMBER\",IF(D35=\"SL_COMPOSITE\",\"MEMBER\",IF(D35=\"SL_FORMFOLDER\",\"@IDESCENDANTS\",\"\")))","v":""},{"$f":"IF(A35<>\"\",A35&\",\"&B35&\",\"&C35&\",\"&E35&\",\"&D35,\"\")","v":""},""]
[null,null,null,null,"","",""]
[null,null,null,null,"",{"$f":"IF(A37<>\"\",A37&\",\"&B37&\",\"&C37&\",\"&E37&\",\"&D37,\"\")","v":""},""]
[null,null,null,null,"","",""]
[null,null,null,null,"","",""]
[null,null,null,null,{"$f":"IF(D40=\"SL_FORM\",\"MEMBER\",IF(D40=\"SL_COMPOSITE\",\"MEMBER\",IF(D40=\"SL_FORMFOLDER\",\"@IDESCENDANTS\",\"\")))","v":""},"",""]
[null,null,null,null,"","",""]
[null,null,null,null,"","",""]
[null,null,null,null,"","",""]
[null,null,null,null,"","",""]
[null,null,null,null,"","",""]
[null,null,null,null,"","",""]
[null,null,null,null,"","",""]
[null,null,null,null,"","",""]
[null,null,null,null,"","",""]
[null,null,null,null,"","",""]
[null,null,null,null,"","",""]
[null,null,null,null,"","",""]
[null,null,null,null,"","",""]
[null,null,null,null,"","",""]
[null,null,null,null,"","",""]
[null,null,null,null,"","",""]
[null,null,null,null,"","",""]
[null,null,null,null,"","",""]
[null,null,null,null,"","",""]
[null,null,null,null,"","",""]
[null,null,null,null,"","",""]
[null,null,null,null,"","",""]
[null,null,null,null,"","",""]
[null,null,null,null,"","",""]
[null,null,null,null,"","",""]
[null,null,null,null,"",{"$f":"IF(A66<>\"\",A66&\",\"&B66&\",\"&C66&\",\"&E66&\",\"&D66,\"\")","v":""},""]
[null,null,null,null,{"$f":"IF(D67=\"SL_FORM\",\"MEMBER\",IF(D67=\"SL_COMPOSITE\",\"MEMBER\",IF(D67=\"SL_FORMFOLDER\",\"@IDESCENDANTS\",\"\")))","v":""},"",{"$f":"IF(A67<>\"\",$G$1&\" '\"&A67&\"'\"&$H$1,\"\")","v":""}]
[null,null,null,null,"","",""]
[null,null,null,null,"","",""]
[null,null,null,null,"","",""]
[null,null,null,null,"","",""]
[null,null,null,null,"","",""]
[null,null,null,null,"","",""]
[null,null,null,null,"","",""]
[null,null,null,null,"","",""]
[null,null,null,null,"","",""]
[null,null,null,null,"","",""]
[null,null,null,null,"","",""]
[null,null,null,null,"","",""]
[null,null,null,null,"","",""]
[null,null,null,null,"","",""]
[null,null,null,null,"","",""]
[null,null,null,null,"","",""]
[null,null,null,null,"","",""]
[null,null,null,null,"","",""]
[null,null,null,null,"","",""]
[null,null,null,null,"","",""]
[null,null,null,null,"","",""]
[null,null,null,null,"","",""]
[null,null,null,null,"","",""]
[null,null,null,null,"","",""]
[null,null,null,null,"","",""]
[null,null,null,null,"","",""]
[null,null,null,null,"","",""]
[null,null,null,null,"","",""]
[null,null,null,null,"","",""]
[null,null,null,null,"","",""]
[null,null,null,null,"",{"$f":"IF(A98<>\"\",A98&\",\"&B98&\",\"&C98&\",\"&E98&\",\"&D98,\"\")","v":""},""]
[null,null,null,null,"","",""]
[null,null,null,null,"","",""]
[null,null,null,null,{"$f":"IF(D101=\"SL_FORM\",\"MEMBER\",IF(D101=\"SL_COMPOSITE\",\"MEMBER\",IF(D101=\"SL_FORMFOLDER\",\"@IDESCENDANTS\",\"\")))","v":""},{"$f":"IF(A101<>\"\",A101&\",\"&B101&\",\"&C101&\",\"&E101&\",\"&D101,\"\")","v":""},""]
[null,null,null,null,"","",""]
[null,null,null,null,"","",""]
[null,null,null,null,"","",""]
[null,null,null,null,"","",""]
[null,null,null,null,"","",""]
[null,null,null,null,"","",""]
[null,null,null,null,"","",""]
[null,null,null,null,"","",""]
[null,null,null,null,"","",""]
[null,null,null,null,"","",""]
[null,null,null,null,"","",""]
[null,null,null,null,"","",""]
[null,null,null,null,"","",""]
[null,null,null,null,"","",""]
[null,null,null,null,"","",""]
[null,null,null,null,"","",""]
[null,null,null,null,"","",""]
[null,null,null,null,"","",""]
[null,null,null,null,"","",""]
[null,null,null,null,"","",""]
[null,null,null,null,"","",""]
[null,null,null,null,"","",""]
[null,null,null,null,"","",""]
[null,null,null,null,"","",""]
[null,null,null,null,"","",""]
[null,null,null,null,"","",""]
[null,null,null,null,"","",""]
[null,null,null,null,"","",""]
[null,null,null,null,"","",""]
[null,null,null,null,"","",{"$f":"IF(A131<>\"\",$G$1&\" '\"&A131&\"'\"&$H$1,\"\")","v":""}]
[null,null,null,null,"","",""]
[null,null,null,null,"","",""]
[null,null,null,null,"","",""]
[null,null,null,null,"","",""]
[null,null,null,null,"","",""]
[null,null,null,null,"","",""]
[null,null,null,null,"","",""]
[null,null,null,null,"","",""]
[null,null,null,null,"","",""]
[null,null,null,null,"","",""]
[null,null,null,null,"","",""]
[null,null,null,null,"","",""]
[null,null,null,null,"","",""]
[null,null,null,null,"","",""]
[null,null,null,null,"","",""]
[null,null,null,null,"","",""]
[null,null,null,null,"","",""]
[null,null,null,null,"","",""]
[null,null,null,null,"","",""]
[null,null,null,null,"","",""]
[null,null,null,null,"","",""]
[null,null,null,null,"","",""]
[null,null,null,null,"","",""]
[null,null,null,null,"","",""]
[null,null,null,null,"","",""]
[null,null,null,null,"","",""]
[null,null,null,null,"","",""]
[null,null,null,null,"","",""]
[null,null,null,null,"","",""]
[null,null,null,null,"","",""]
[null,null,null,null,"","",""]
[null,null,null,null,"","",""]
[null,null,null,null,"","",""]
[null,null,null,null,{"$f":"IF(D165=\"SL_FORM\",\"MEMBER\",IF(D165=\"SL_COMPOSITE\",\"MEMBER\",IF(D165=\"SL_FORMFOLDER\",\"@IDESCENDANTS\",\"\")))","v":""},{"$f":"IF(A165<>\"\",A165&\",\"&B165&\",\"&C165&\",\"&E165&\",\"&D165,\"\")","v":""},""]
[null,null,null,null,"","",""]
[null,null,null,null,"","",""]
[null,null,null,null,"","",""]
[null,null,null,null,"","",""]
[null,null,null,null,"","",""]
[null,null,null,null,"","",""]
[null,null,null,null,"","",""]
[null,null,null,null,"","",""]
[null,null,null,null,"","",""]
[null,null,null,null,"","",""]
[null,null,null,null,"","",""]
[null,null,null,null,"","",""]
[null,null,null,null,"","",""]
[null,null,null,null,"","",""]
[null,null,null,null,"","",""]
[null,null,null,null,"","",""]
[null,null,null,null,"","",""]
[null,null,null,null,"","",""]
[null,null,null,null,"","",""]
[null,null,null,null,"","",""]
[null,null,null,null,"","",""]
[null,null,null,null,"","",""]
[null,null,null,null,"","",""]
[null,null,null,null,"","",""]
[null,null,null,null,"","",""]
[null,null,null,null,"","",""]
[null,null,null,null,"","",""]
[null,null,null,null,"","",""]
[null,null,null,null,"","",""]
[null,null,null,null,"","",{"$f":"IF(A195<>\"\",$G$1&\" '\"&A195&\"'\"&$H$1,\"\")","v":""}]
[null,null,null,null,"","",""]
[null,null,null,null,"","",""]
[null,null,null,null,"","",""]
[null,null,null,null,"","",""]
[null,null,null,null,"","",""]
[null,null,null,null,"","",""]
[null,null,null,null,"","",""]
[null,null,null,null,"","",""]
[null,null,null,null,"","",""]
[null,null,null,null,"","",""]
[null,null,null,null,"","",""]
[null,null,null,null,"","",""]
[null,null,null,null,"","",""]
[null,null,null,null,"","",""]
[null,null,null,null,"","",""]
[null,null,null,null,"","",""]
[null,null,null,null,"","",""]
[null,null,null,null,"","",""]
[null,null,null,null,"","",""]
[null,null,null,null,"","",""]
[null,null,null,null,"","",""]
[null,null,null,null,"","",""]
[null,null,null,null,"","",""]
[null,null,null,null,"","",""]
[null,null,null,null,"","",""]
[null,null,null,null,"","",""]
[null,null,null,null,"","",""]
[null,null,null,null,"","",""]
[null,null,null,null,"","",""]
[null,null,null,null,"","",""]
[null,null,null,null,"","",""]
[null,null,null,null,"","",""]
[null,null,null,null,"","",""]
[null,null,null,null,{"$f":"IF(D229=\"SL_FORM\",\"MEMBER\",IF(D229=\"SL_COMPOSITE\",\"MEMBER\",IF(D229=\"SL_FORMFOLDER\",\"@IDESCENDANTS\",\"\")))","v":""},{"$f":"IF(A229<>\"\",A229&\",\"&B229&\",\"&C229&\",\"&E229&\",\"&D229,\"\")","v":""},""]
[null,null,null,null,"","",""]
[null,null,null,null,"","",""]
[null,null,null,null,"","",""]
[null,null,null,null,"","",""]
[null,null,null,null,"","",""]
[null,null,null,null,"","",""]
[null,null,null,null,"","",""]
[null,null,null,null,"","",""]
[null,null,null,null,"","",""]
[null,null,null,null,"","",""]
[null,null,null,null,"","",""]
[null,null,null,null,"","",""]
[null,null,null,null,"","",""]
[null,null,null,null,"","",""]
[null,null,null,null,"","",""]
[null,null,null,null,"","",""]
[null,null,null,null,"","",""]
[null,null,null,null,"","",""]
[null,null,null,null,"","",""]
[null,null,null,null,"","",""]
[null,null,null,null,"","",""]

{"sheet":"BusinessRuleSecurity","index":3,"n_rows":200,"n_cols":8,"rows_kept":200,"cut":false,"hidden":false,"merged":[]}
["Group Name","BR or BR Folder","Access Level","Relationship","Type","Used in SecFile","CREATE OR REPLACE GROUP",";"]
[null,null,null,null,null,{"$f":"IF(A2<>\"\",A2&\",\"&B2&\",\"&C2&\",\"&D2&\",\"&E2,\"\")","v":""},{"$f":"IF(A2<>\"\",$G$1&\" '\"&A2&\"'\"&$H$1,\"\")","v":""}]
[null,null,null,null,null,{"$f":"IF(A3<>\"\",A3&\",\"&B3&\",\"&C3&\",\"&D3&\",\"&E3,\"\")","v":""},{"$f":"IF(A3<>\"\",$G$1&\" '\"&A3&\"'\"&$H$1,\"\")","v":""}]
[null,null,null,null,null,{"$f":"IF(A4<>\"\",A4&\",\"&B4&\",\"&C4&\",\"&D4&\",\"&E4,\"\")","v":""},""]
[null,null,null,null,null,{"$f":"IF(A5<>\"\",A5&\",\"&B5&\",\"&C5&\",\"&D5&\",\"&E5,\"\")","v":""},""]
[null,null,null,null,null,"",""]
[null,null,null,null,null,{"$f":"IF(A7<>\"\",A7&\",\"&B7&\",\"&C7&\",\"&D7&\",\"&E7,\"\")","v":""},""]
[null,null,null,null,null,"",""]
[null,null,null,null,null,"",""]
[null,null,null,null,null,"",""]
[null,null,null,null,null,"",""]
[null,null,null,null,null,"",""]
[null,null,null,null,null,"",""]
[null,null,null,null,null,"",""]
[null,null,null,null,null,"",""]
[null,null,null,null,null,"",""]
[null,null,null,null,null,"",""]
[null,null,null,null,null,"",""]
[null,null,null,null,null,"",""]
[null,null,null,null,null,"",""]
[null,null,null,null,null,"",""]
[null,null,null,null,null,"",""]
[null,null,null,null,null,"",""]
[null,null,null,null,null,"",""]
[null,null,null,null,null,"",""]
[null,null,null,null,null,"",""]
[null,null,null,null,null,"",""]
[null,null,null,null,null,"",""]
[null,null,null,null,null,"",""]
[null,null,null,null,null,"",""]
[null,null,null,null,null,"",""]
[null,null,null,null,null,"",""]
[null,null,null,null,null,"",""]
[null,null,null,null,null,"",""]
[null,null,null,null,null,"",""]
[null,null,null,null,null,"",""]
[null,null,null,null,null,"",""]
[null,null,null,null,null,"",""]
[null,null,null,null,null,"",""]
[null,null,null,null,null,"",""]
[null,null,null,null,null,"",""]
[null,null,null,null,null,"",""]
[null,null,null,null,null,"",""]
[null,null,null,null,null,"",""]
[null,null,null,null,null,"",""]
[null,null,null,null,null,"",""]
[null,null,null,null,null,"",""]
[null,null,null,null,null,"",""]
[null,null,null,null,null,"",""]
[null,null,null,null,null,"",""]
[null,null,null,null,null,"",""]
[null,null,null,null,null,"",""]
[null,null,null,null,null,"",""]
[null,null,null,null,null,"",""]
[null,null,null,null,null,"",""]
[null,null,null,null,null,"",""]
[null,null,null,null,null,"",""]
[null,null,null,null,null,"",""]
[null,null,null,null,null,"",""]
[null,null,null,null,null,"",""]
[null,null,null,null,null,"",""]
[null,null,null,null,null,"",""]
[null,null,null,null,null,"",""]
[null,null,null,null,null,"",""]
[null,null,null,null,null,"",""]
[null,null,null,null,null,"",""]
[null,null,null,null,null,{"$f":"IF(A67<>\"\",A67&\",\"&B67&\",\"&C67&\",\"&D67&\",\"&E67,\"\")","v":""},{"$f":"IF(A67<>\"\",$G$1&\" '\"&A67&\"'\"&$H$1,\"\")","v":""}]
[null,null,null,null,null,"",""]
[null,null,null,null,null,"",""]
[null,null,null,null,null,"",""]
[null,null,null,null,null,"",""]
[null,null,null,null,null,"",""]
[null,null,null,null,null,"",""]
[null,null,null,null,null,"",""]
[null,null,null,null,null,"",""]
[null,null,null,null,null,"",""]
[null,null,null,null,null,"",""]
[null,null,null,null,null,"",""]
[null,null,null,null,null,"",""]
[null,null,null,null,null,"",""]
[null,null,null,null,null,"",""]
[null,null,null,null,null,"",""]
[null,null,null,null,null,"",""]
[null,null,null,null,null,"",""]
[null,null,null,null,null,"",""]
[null,null,null,null,null,"",""]
[null,null,null,null,null,"",""]
[null,null,null,null,null,"",""]
[null,null,null,null,null,"",""]
[null,null,null,null,null,"",""]
[null,null,null,null,null,"",""]
[null,null,null,null,null,"",""]
[null,null,null,null,null,"",""]
[null,null,null,null,null,"",""]
[null,null,null,null,null,"",""]
[null,null,null,null,null,"",""]
[null,null,null,null,null,"",""]
[null,null,null,null,null,"",""]
[null,null,null,null,null,"",""]
[null,null,null,null,null,"",""]
[null,null,null,null,null,{"$f":"IF(A101<>\"\",A101&\",\"&B101&\",\"&C101&\",\"&D101&\",\"&E101,\"\")","v":""},""]
[null,null,null,null,null,"",""]
[null,null,null,null,null,"",""]
[null,null,null,null,null,"",""]
[null,null,null,null,null,"",""]
[null,null,null,null,null,"",""]
[null,null,null,null,null,"",""]
[null,null,null,null,null,"",""]
[null,null,null,null,null,"",""]
[null,null,null,null,null,"",""]
[null,null,null,null,null,"",""]
[null,null,null,null,null,"",""]
[null,null,null,null,null,"",""]
[null,null,null,null,null,"",""]
[null,null,null,null,null,"",""]
[null,null,null,null,null,"",""]
[null,null,null,null,null,"",""]
[null,null,null,null,null,"",""]
[null,null,null,null,null,"",""]
[null,null,null,null,null,"",""]
[null,null,null,null,null,"",""]
[null,null,null,null,null,"",""]
[null,null,null,null,null,"",""]
[null,null,null,null,null,"",""]
[null,null,null,null,null,"",""]
[null,null,null,null,null,"",""]
[null,null,null,null,null,"",""]
[null,null,null,null,null,"",""]
[null,null,null,null,null,"",""]
[null,null,null,null,null,"",""]
[null,null,null,null,null,"",{"$f":"IF(A131<>\"\",$G$1&\" '\"&A131&\"'\"&$H$1,\"\")","v":""}]
[null,null,null,null,null,"",""]
[null,null,null,null,null,"",""]
[null,null,null,null,null,"",""]
[null,null,null,null,null,"",""]
[null,null,null,null,null,"",""]
[null,null,null,null,null,"",""]
[null,null,null,null,null,"",""]
[null,null,null,null,null,"",""]
[null,null,null,null,null,"",""]
[null,null,null,null,null,"",""]
[null,null,null,null,null,"",""]
[null,null,null,null,null,"",""]
[null,null,null,null,null,"",""]
[null,null,null,null,null,"",""]
[null,null,null,null,null,"",""]
[null,null,null,null,null,"",""]
[null,null,null,null,null,"",""]
[null,null,null,null,null,"",""]
[null,null,null,null,null,"",""]
[null,null,null,null,null,"",""]
[null,null,null,null,null,"",""]
[null,null,null,null,null,"",""]
[null,null,null,null,null,"",""]
[null,null,null,null,null,"",""]
[null,null,null,null,null,"",""]
[null,null,null,null,null,"",""]
[null,null,null,null,null,"",""]
[null,null,null,null,null,"",""]
[null,null,null,null,null,"",""]
[null,null,null,null,null,"",""]
[null,null,null,null,null,"",""]
[null,null,null,null,null,"",""]
[null,null,null,null,null,"",""]
[null,null,null,null,null,{"$f":"IF(A165<>\"\",A165&\",\"&B165&\",\"&C165&\",\"&D165&\",\"&E165,\"\")","v":""},""]
[null,null,null,null,null,"",""]
[null,null,null,null,null,"",""]
[null,null,null,null,null,"",""]
[null,null,null,null,null,"",""]
[null,null,null,null,null,"",""]
[null,null,null,null,null,"",""]
[null,null,null,null,null,"",""]
[null,null,null,null,null,"",""]
[null,null,null,null,null,"",""]
[null,null,null,null,null,"",""]
[null,null,null,null,null,"",""]
[null,null,null,null,null,"",""]
[null,null,null,null,null,"",""]
[null,null,null,null,null,"",""]
[null,null,null,null,null,"",""]
[null,null,null,null,null,"",""]
[null,null,null,null,null,"",""]
[null,null,null,null,null,"",""]
[null,null,null,null,null,"",""]
[null,null,null,null,null,"",""]
[null,null,null,null,null,"",""]
[null,null,null,null,null,"",""]
[null,null,null,null,null,"",""]
[null,null,null,null,null,"",""]
[null,null,null,null,null,"",""]
[null,null,null,null,null,"",""]
[null,null,null,null,null,"",""]
[null,null,null,null,null,"",""]
[null,null,null,null,null,"",""]
[null,null,null,null,null,"",{"$f":"IF(A195<>\"\",$G$1&\" '\"&A195&\"'\"&$H$1,\"\")","v":""}]
[null,null,null,null,null,"",""]
[null,null,null,null,null,"",""]
[null,null,null,null,null,"",""]
[null,null,null,null,null,"",""]
[null,null,null,null,null,"",""]

{"sheet":"TaskListSecurity","index":4,"n_rows":200,"n_cols":8,"rows_kept":200,"cut":false,"hidden":false,"merged":[]}
["Group Name","MemberName","Access Level","Relationship","Type","Used in SecFile","CREATE OR REPLACE GROUP",";"]
[null,null,null,null,{"$f":"IF(A2<>\"\",\"SL_TASKLIST\",\"\")","v":""},{"$f":"IF(A2<>\"\",A2&\",\"&B2&\",\"&C2&\",\"&D2&\",\"&E2,\"\")","v":""},{"$f":"IF(A2<>\"\",$G$1&\" '\"&A2&\"'\"&$H$1,\"\")","v":""}]
[null,null,null,null,"","",{"$f":"IF(A3<>\"\",$G$1&\" '\"&A3&\"'\"&$H$1,\"\")","v":""}]
[null,null,null,null,"","",""]
[null,null,null,null,"","",""]
[null,null,null,null,"","",""]
[null,null,null,null,"","",""]
[null,null,null,null,"","",""]
[null,null,null,null,"","",""]
[null,null,null,null,"","",""]
[null,null,null,null,"","",""]
[null,null,null,null,"","",""]
[null,null,null,null,{"$f":"IF(A13<>\"\",\"SL_TASKLIST\",\"\")","v":""},{"$f":"IF(A13<>\"\",A13&\",\"&B13&\",\"&C13&\",\"&D13&\",\"&E13,\"\")","v":""},""]
[null,null,null,null,"","",""]
[null,null,null,null,"","",""]
[null,null,null,null,"","",""]
[null,null,null,null,"","",""]
[null,null,null,null,"","",""]
[null,null,null,null,"","",""]
[null,null,null,null,"","",""]
[null,null,null,null,"","",""]
[null,null,null,null,"","",""]
[null,null,null,null,"","",""]
[null,null,null,null,"","",""]
[null,null,null,null,"","",""]
[null,null,null,null,"","",""]
[null,null,null,null,"","",""]
[null,null,null,null,"","",""]
[null,null,null,null,"","",""]
[null,null,null,null,"","",""]
[null,null,null,null,"","",""]
[null,null,null,null,"","",""]
[null,null,null,null,"","",""]
[null,null,null,null,"","",""]
[null,null,null,null,"","",""]
[null,null,null,null,"","",""]
[null,null,null,null,"","",""]
[null,null,null,null,"","",""]
[null,null,null,null,"","",""]
[null,null,null,null,"","",""]
[null,null,null,null,"","",""]
[null,null,null,null,"","",""]
[null,null,null,null,"","",""]
[null,null,null,null,"","",""]
[null,null,null,null,"","",""]
[null,null,null,null,"","",""]
[null,null,null,null,"","",""]
[null,null,null,null,"","",""]
[null,null,null,null,"","",""]
[null,null,null,null,"","",""]
[null,null,null,null,"","",""]
[null,null,null,null,"","",""]
[null,null,null,null,"","",""]
[null,null,null,null,"","",""]
[null,null,null,null,"","",""]
[null,null,null,null,"","",""]
[null,null,null,null,"","",""]
[null,null,null,null,"","",""]
[null,null,null,null,"","",""]
[null,null,null,null,"","",""]
[null,null,null,null,"","",""]
[null,null,null,null,"","",""]
[null,null,null,null,"","",""]
[null,null,null,null,"","",""]
[null,null,null,null,"","",""]
[null,null,null,null,"","",""]
[null,null,null,null,{"$f":"IF(A67<>\"\",\"SL_TASKLIST\",\"\")","v":""},{"$f":"IF(A67<>\"\",A67&\",\"&B67&\",\"&C67&\",\"&D67&\",\"&E67,\"\")","v":""},{"$f":"IF(A67<>\"\",$G$1&\" '\"&A67&\"'\"&$H$1,\"\")","v":""}]
[null,null,null,null,"","",""]
[null,null,null,null,"","",""]
[null,null,null,null,"","",""]
[null,null,null,null,"","",""]
[null,null,null,null,"","",""]
[null,null,null,null,"","",""]
[null,null,null,null,"","",""]
[null,null,null,null,"","",""]
[null,null,null,null,"","",""]
[null,null,null,null,"","",""]
[null,null,null,null,"","",""]
[null,null,null,null,"","",""]
[null,null,null,null,"","",""]
[null,null,null,null,"","",""]
[null,null,null,null,"","",""]
[null,null,null,null,"","",""]
[null,null,null,null,"","",""]
[null,null,null,null,"","",""]
[null,null,null,null,"","",""]
[null,null,null,null,"","",""]
[null,null,null,null,"","",""]
[null,null,null,null,"","",""]
[null,null,null,null,"","",""]
[null,null,null,null,"","",""]
[null,null,null,null,"","",""]
[null,null,null,null,"","",""]
[null,null,null,null,"","",""]
[null,null,null,null,"","",""]
[null,null,null,null,"","",""]
[null,null,null,null,"","",""]
[null,null,null,null,"","",""]
[null,null,null,null,"","",""]
[null,null,null,null,"","",""]
[null,null,null,null,{"$f":"IF(A101<>\"\",\"SL_TASKLIST\",\"\")","v":""},{"$f":"IF(A101<>\"\",A101&\",\"&B101&\",\"&C101&\",\"&D101&\",\"&E101,\"\")","v":""},""]
[null,null,null,null,"","",""]
[null,null,null,null,"","",""]
[null,null,null,null,"","",""]
[null,null,null,null,"","",""]
[null,null,null,null,"","",""]
[null,null,null,null,"","",""]
[null,null,null,null,"","",""]
[null,null,null,null,"","",""]
[null,null,null,null,"","",""]
[null,null,null,null,"","",""]
[null,null,null,null,"","",""]
[null,null,null,null,"","",""]
[null,null,null,null,"","",""]
[null,null,null,null,"","",""]
[null,null,null,null,"","",""]
[null,null,null,null,"","",""]
[null,null,null,null,"","",""]
[null,null,null,null,"","",""]
[null,null,null,null,"","",""]
[null,null,null,null,"","",""]
[null,null,null,null,"","",""]
[null,null,null,null,"","",""]
[null,null,null,null,"","",""]
[null,null,null,null,"","",""]
[null,null,null,null,"","",""]
[null,null,null,null,"","",""]
[null,null,null,null,"","",""]
[null,null,null,null,"","",""]
[null,null,null,null,"","",""]
[null,null,null,null,"","",{"$f":"IF(A131<>\"\",$G$1&\" '\"&A131&\"'\"&$H$1,\"\")","v":""}]
[null,null,null,null,"","",""]
[null,null,null,null,"","",""]
[null,null,null,null,"","",""]
[null,null,null,null,"","",""]
[null,null,null,null,"","",""]
[null,null,null,null,"","",""]
[null,null,null,null,"","",""]
[null,null,null,null,"","",""]
[null,null,null,null,"","",""]
[null,null,null,null,"","",""]
[null,null,null,null,"","",""]
[null,null,null,null,"","",""]
[null,null,null,null,"","",""]
[null,null,null,null,"","",""]
[null,null,null,null,"","",""]
[null,null,null,null,"","",""]
[null,null,null,null,"","",""]
[null,null,null,null,"","",""]
[null,null,null,null,"","",""]
[null,null,null,null,"","",""]
[null,null,null,null,"","",""]
[null,null,null,null,"","",""]
[null,null,null,null,"","",""]
[null,null,null,null,"","",""]
[null,null,null,null,"","",""]
[null,null,null,null,"","",""]
[null,null,null,null,"","",""]
[null,null,null,null,"","",""]
[null,null,null,null,"","",""]
[null,null,null,null,"","",""]
[null,null,null,null,"","",""]
[null,null,null,null,"","",""]
[null,null,null,null,"","",""]
[null,null,null,null,{"$f":"IF(A165<>\"\",\"SL_TASKLIST\",\"\")","v":""},{"$f":"IF(A165<>\"\",A165&\",\"&B165&\",\"&C165&\",\"&D165&\",\"&E165,\"\")","v":""},""]
[null,null,null,null,"","",""]
[null,null,null,null,"","",""]
[null,null,null,null,"","",""]
[null,null,null,null,"","",""]
[null,null,null,null,"","",""]
[null,null,null,null,"","",""]
[null,null,null,null,"","",""]
[null,null,null,null,"","",""]
[null,null,null,null,"","",""]
[null,null,null,null,"","",""]
[null,null,null,null,"","",""]
[null,null,null,null,"","",""]
[null,null,null,null,"","",""]
[null,null,null,null,"","",""]
[null,null,null,null,"","",""]
[null,null,null,null,"","",""]
[null,null,null,null,"","",""]
[null,null,null,null,"","",""]
[null,null,null,null,"","",""]
[null,null,null,null,"","",""]
[null,null,null,null,"","",""]
[null,null,null,null,"","",""]
[null,null,null,null,"","",""]
[null,null,null,null,"","",""]
[null,null,null,null,"","",""]
[null,null,null,null,"","",""]
[null,null,null,null,"","",""]
[null,null,null,null,"","",""]
[null,null,null,null,"","",""]
[null,null,null,null,"","",{"$f":"IF(A195<>\"\",$G$1&\" '\"&A195&\"'\"&$H$1,\"\")","v":""}]
[null,null,null,null,"","",""]
[null,null,null,null,"","",""]
[null,null,null,null,"","",""]
[null,null,null,null,"","",""]
[null,null,null,null,"","",""]

{"sheet":"lists","index":5,"n_rows":9,"n_cols":14,"rows_kept":9,"cut":false,"hidden":true,"merged":[[2,0,2,1],[2,3,2,5],[2,7,2,9],[2,11,2,13]]}
[]
[]
["MemberSecurity",null,null,"FormSecurity",null,null,null,"BusinessRuleSecurity",null,null,null,"TaskListSecurity"]
["Access Level","Relationship",null,"Access Level",null,"Type of object",null,"Access Level","Relationship","Type of object",null,"Access Level","Relationship","Type of object"]
["NONE","MEMBER",null,"NONE",null,"SL_FORM",null,"LAUNCH","MEMBER","SL_CALCFOLDER",null,"READWRITE","MEMBER","SL_TASKLIST"]
["READ","@DESCENDANTS",null,"READ",null,"SL_FORMFOLDER",null,"NONE","@DESCENDANTS","SL_CALCRULE",null,"READ"]
["READWRITE","@IDESCENDANTS",null,"WRITE",null,"SL_COMPOSITE",null,null,"@IDESCENDANTS"]
[null,"@CHILDREN"]
[null,"@ICHILDREN"]

{"sheet":"AddUsersToGroup","index":6,"n_rows":500,"n_cols":3,"rows_kept":500,"cut":false,"hidden":false,"merged":[]}
["UserName","GroupName","Used in Maxl to add users to groups"]
[null,null,{"$f":"IF(A2<>\"\",\"alter user \"&A2&\" add to group '\"&B2&\"';\",\"\")","v":""}]
[null,null,{"$f":"IF(A3<>\"\",\"alter user \"&A3&\" add to group '\"&B3&\"';\",\"\")","v":""}]
[null,null,""]
[null,null,{"$f":"IF(A5<>\"\",\"alter user \"&A5&\" add to group \"&B5&\";\",\"\")","v":""}]
[null,null,""]
[null,null,""]
[null,null,""]
[null,null,""]
[null,null,""]
[null,null,""]
[null,null,""]
[null,null,""]
[null,null,{"$f":"IF(A14<>\"\",\"alter user \"&A14&\" add to group \"&B14&\";\",\"\")","v":""}]
[null,null,""]
[null,null,""]
[null,null,""]
[null,null,""]
[null,null,""]
[null,null,""]
[null,null,""]
[null,null,""]
[null,null,""]
[null,null,""]
[null,null,""]
[null,null,""]
[null,null,""]
[null,null,""]
[null,null,""]
[null,null,""]
[null,null,""]
[null,null,""]
[null,null,""]
[null,null,""]
[null,null,""]
[null,null,""]
[null,null,""]
[null,null,""]
[null,null,""]
[null,null,""]
[null,null,""]
[null,null,""]
[null,null,""]
[null,null,""]
[null,null,""]
[null,null,""]
[null,null,""]
[null,null,""]
[null,null,""]
[null,null,""]
[null,null,""]
[null,null,""]
[null,null,""]
[null,null,""]
[null,null,""]
[null,null,""]
[null,null,""]
[null,null,""]
[null,null,""]
[null,null,""]
[null,null,""]
[null,null,""]
[null,null,""]
[null,null,""]
[null,null,""]
[null,null,""]
[null,null,""]
[null,null,""]
[null,null,""]
[null,null,""]
[null,null,""]
[null,null,""]
[null,null,""]
[null,null,""]
[null,null,""]
[null,null,""]
[null,null,""]
[null,null,{"$f":"IF(A78<>\"\",\"alter user \"&A78&\" add to group \"&B78&\";\",\"\")","v":""}]
[null,null,""]
[null,null,""]
[null,null,""]
[null,null,""]
[null,null,""]
[null,null,""]
[null,null,""]
[null,null,""]
[null,null,""]
[null,null,""]
[null,null,""]
[null,null,""]
[null,null,""]
[null,null,""]
[null,null,""]
[null,null,""]
[null,null,""]
[null,null,""]
[null,null,""]
[null,null,""]
[null,null,""]
[null,null,""]
[null,null,""]
[null,null,""]
[null,null,""]
[null,null,""]
[null,null,""]
[null,null,""]
[null,null,""]
[null,null,""]
[null,null,""]
[null,null,""]
[null,null,""]
[null,null,""]
[null,null,""]
[null,null,""]
[null,null,""]
[null,null,""]
[null,null,""]
[null,null,""]
[null,null,""]
[null,null,""]
[null,null,""]
[null,null,""]
[null,null,""]
[null,null,""]
[null,null,""]
[null,null,""]
[null,null,""]
[null,null,""]
[null,null,""]
[null,null,""]
[null,null,""]
[null,null,""]
[null,null,""]
[null,null,""]
[null,null,""]
[null,null,""]
[null,null,""]
[null,null,""]
[null,null,""]
[null,null,""]
[null,null,""]
[null,null,{"$f":"IF(A142<>\"\",\"alter user \"&A142&\" add to group \"&B142&\";\",\"\")","v":""}]
[null,null,""]
[null,null,""]
[null,null,""]
[null,null,""]
[null,null,""]
[null,null,""]
[null,null,""]
[null,null,""]
[null,null,""]
[null,null,""]
[null,null,""]
[null,null,""]
[null,null,""]
[null,null,""]
[null,null,""]
[null,null,""]
[null,null,""]
[null,null,""]
[null,null,""]
[null,null,""]
[null,null,""]
[null,null,""]
[null,null,""]
[null,null,""]
[null,null,""]
[null,null,""]
[null,null,""]
[null,null,""]
[null,null,""]
[null,null,""]
[null,null,""]
[null,null,""]
[null,null,""]
[null,null,""]
[null,null,""]
[null,null,""]
[null,null,""]
[null,null,""]
[null,null,""]
[null,null,""]
[null,null,""]
[null,null,""]
[null,null,""]
[null,null,""]
[null,null,""]
[null,null,""]
[null,null,""]
[null,null,""]
[null,null,""]
[null,null,""]
[null,null,""]
[null,null,""]
[null,null,""]
[null,null,""]
[null,null,""]
[null,null,""]
[null,null,""]
[null,null,""]
[null,null,""]
[null,null,""]
[null,null,""]
[null,null,""]
[null,null,""]
[null,null,{"$f":"IF(A206<>\"\",\"alter user \"&A206&\" add to group \"&B206&\";\",\"\")","v":""}]
[null,null,""]
[null,null,""]
[null,null,""]
[null,null,""]
[null,null,""]
[null,null,""]
[null,null,""]
[null,null,""]
[null,null,""]
[null,null,""]
[null,null,""]
[null,null,""]
[null,null,""]
[null,null,""]
[null,null,""]
[null,null,""]
[null,null,""]
[null,null,""]
[null,null,""]
[null,null,""]
[null,null,""]
[null,null,""]
[null,null,""]
[null,null,""]
[null,null,""]
[null,null,""]
[null,null,""]
[null,null,""]
[null,null,""]
[null,null,""]
[null,null,""]
[null,null,""]
[null,null,""]
[null,null,""]
[null,null,""]
[null,null,""]
[null,null,""]
[null,null,""]
[null,null,""]
[null,null,""]
[null,null,""]
[null,null,""]
[null,null,""]
[null,null,""]
[null,null,""]
[null,null,""]
[null,null,""]
[null,null,""]
[null,null,""]
[null,null,""]
[null,null,""]
[null,null,""]
[null,null,""]
[null,null,""]
[null,null,""]
[null,null,""]
[null,null,""]
[null,null,""]
[null,null,""]
[null,null,""]
[null,null,""]
[null,null,""]
[null,null,""]
[null,null,{"$f":"IF(A270<>\"\",\"alter user \"&A270&\" add to group \"&B270&\";\",\"\")","v":""}]
[null,null,""]
[null,null,""]
[null,null,""]
[null,null,""]
[null,null,""]
[null,null,""]
[null,null,""]
[null,null,""]
[null,null,""]
[null,null,""]
[null,null,""]
[null,null,""]
[null,null,""]
[null,null,""]
[null,null,""]
[null,null,""]
[null,null,""]
[null,null,""]
[null,null,""]
[null,null,""]
[null,null,""]
[null,null,""]
[null,null,""]
[null,null,""]
[null,null,""]
[null,null,""]
[null,null,""]
[null,null,""]
[null,null,""]
[null,null,""]
[null,null,""]
[null,null,""]
[null,null,""]
[null,null,""]
[null,null,""]
[null,null,""]
[null,null,""]
[null,null,""]
[null,null,""]
[null,null,""]
[null,null,""]
[null,null,""]
[null,null,""]
[null,null,""]
[null,null,""]
[null,null,""]
[null,null,""]
[null,null,""]
[null,null,""]
[null,null,""]
[null,null,""]
[null,null,""]
[null,null,""]
[null,null,""]
[null,null,""]
[null,null,""]
[null,null,""]
[null,null,""]
[null,null,""]
[null,null,""]
[null,null,""]
[null,null,""]
[null,null,""]
[null,null,{"$f":"IF(A334<>\"\",\"alter user \"&A334&\" add to group \"&B334&\";\",\"\")","v":""}]
[null,null,""]
[null,null,""]
[null,null,""]
[null,null,""]
[null,null,""]
[null,null,""]
[null,null,""]
[null,null,""]
[null,null,""]
[null,null,""]
[null,null,""]
[null,null,""]
[null,null,""]
[null,null,""]
[null,null,""]
[null,null,""]
[null,null,""]
[null,null,""]
[null,null,""]
[null,null,""]
[null,null,""]
[null,null,""]
[null,null,""]
[null,null,""]
[null,null,""]
[null,null,""]
[null,null,""]
[null,null,""]
[null,null,""]
[null,null,""]
[null,null,""]
[null,null,""]
[null,null,""]
[null,null,""]
[null,null,""]
[null,null,""]
[null,null,""]
[null,null,""]
[null,null,""]
[null,null,""]
[null,null,""]
[null,null,""]
[null,null,""]
[null,null,""]
[null,null,""]
[null,null,""]
[null,null,""]
[null,null,""]
[null,null,""]
[null,null,""]
[null,null,""]
[null,null,""]
[null,null,""]
[null,null,""]
[null,null,""]
[null,null,""]
[null,null,""]
[null,null,""]
[null,null,""]
[null,null,""]
[null,null,""]
[null,null,""]
[null,null,""]
[null,null,{"$f":"IF(A398<>\"\",\"alter user \"&A398&\" add to group \"&B398&\";\",\"\")","v":""}]
[null,null,""]
[null,null,""]
[null,null,""]
[null,null,""]
[null,null,""]
[null,null,""]
[null,null,""]
[null,null,""]
[null,null,""]
[null,null,""]
[null,null,""]
[null,null,""]
[null,null,""]
[null,null,""]
[null,null,""]
[null,null,""]
[null,null,""]
[null,null,""]
[null,null,""]
[null,null,""]
[null,null,""]
[null,null,""]
[null,null,""]
[null,null,""]
[null,null,""]
[null,null,""]
[null,null,""]
[null,null,""]
[null,null,""]
[null,null,""]
[null,null,""]
[null,null,""]
[null,null,""]
[null,null,""]
[null,null,""]
[null,null,""]
[null,null,""]
[null,null,""]
[null,null,""]
[null,null,""]
[null,null,""]
[null,null,""]
[null,null,""]
[null,null,""]
[null,null,""]
[null,null,""]
[null,null,""]
[null,null,""]
[null,null,""]
[null,null,""]
[null,null,""]
[null,null,""]
[null,null,""]
[null,null,""]
[null,null,""]
[null,null,""]
[null,null,""]
[null,null,""]
[null,null,""]
[null,null,""]
[null,null,""]
[null,null,""]
[null,null,""]
[null,null,{"$f":"IF(A462<>\"\",\"alter user \"&A462&\" add to group \"&B462&\";\",\"\")","v":""}]
[null,null,""]
[null,null,""]
[null,null,""]
[null,null,""]
[null,null,""]
[null,null,""]
[null,null,""]
[null,null,""]
[null,null,""]
[null,null,""]
[null,null,""]
[null,null,""]
[null,null,""]
[null,null,""]
[null,null,""]
[null,null,""]
[null,null,""]
[null,null,""]
[null,null,""]
[null,null,""]
[null,null,""]
[null,null,""]
[null,null,""]
[null,null,""]
[null,null,""]
[null,null,""]
[null,null,""]
[null,null,""]
[null,null,""]
[null,null,""]
[null,null,""]
[null,null,""]
[null,null,""]
[null,null,""]
[null,null,""]
[null,null,""]
[null,null,""]
[null,null,""]